Workbook

Sheet паспорт
A1: ПАТ "УКРТРАНСГАЗ" | G1: ПАСПОРТ ФІЗИКО-ХІМІЧНИХ ПОКАЗНИКІВ ПРИРОДНОГО ГАЗУ № 642
A2: Філія УМГ "ХАРКІВТРАНСГАЗ" | G2: переданого Пролетарським ВУПЗГ та прийнятого ПАТ "ДНІПРОПЕТРОВСЬКГАЗ"
A3: Пролетарське ВУПЗГ | G3: Маршрут № 642
A4: Вимірювальна хіміко-аналітична лабораторія
A5: Свідоцтво № ПЧ-07-0/1158-2014 чинно до 22.10.2017 р. | K5: по газопроводу -відгалудженню Пролетарська СПЗГ-ШДКРІ | V5: за період з | X5: 01.02.2017 р. | Z5: по | AA5: 28.02.2017 р.
A7: Число місяця | B7: Компонентний склад, мол. % | N7: Фізико-хімічні показники газу обчислені на основі компонентного складу, 101,325 кПа | X7: Температура точки роси за вологою (Р = 3.92 МПа), °С | Y7: Температура точки роси за вуглеводнями, °С | Z7: Вміст сірководню, г/м3 | AA7: Вміст меркаптанової сірки, г/м3 | AB7: Вміст механічних домішок, г/м3
N8: Густина абсолютна, кг/м3,при 20 °С, | O8: Температура вимірювання/згоряння при 20/25°С
B9: метан, С1 | C9: етан, С2 | D9: пропан, С3 | E9: ізо-бутан, і-С4 | F9: н-бутан, н-С4 | G9: нео-пентан, нео-С5 | H9: ізо-пентан, і-С5 | I9: н-пентан, н-С5 | J9: гексани та вищі, С6+ | K9: кисень, О2 | L9: азот, N2 | M9: діоксид вуглецю, CО2 | O9: Теплота згоряння нижча | R9: Теплота згоряння вища | U9: Число Воббе вище
O10: ккал/м³ | P10: МДж/м³ | Q10: кВт⋅год/м³ | R10: ккал/м³ | S10: МДж/м³ | T10: кВт⋅год/м³ | U10: ккал/м³ | V10: МДж/м³ | W10: кВт⋅год/м³
A11: 1 | O11: =P11*238.8459 -> 8262.157373 | P11: 34.592 | Q11: =P11/3.6 -> 9.608888889 | R11: =S11*238.8459 -> 9152.407696 | S11: 38.3193 | T11: =S11/3.6 -> 10.64425 | AC11: =SUM(B11:M11)+$K$42+$N$42 -> 0
A12: 2 | O12: =P12*238.8459 -> 8262.157373 | P12: 34.592 | Q12: 9.608888889 | R12: =S12*238.8459 -> 9152.407696 | S12: 38.3193 | T12: 10.64425 | AC12: 0
A13: 3 | O13: 8262.157373 | P13: 34.592 | Q13: 9.608888889 | R13: 9152.407696 | S13: 38.3193 | T13: 10.64425 | AC13: 0 | AD13: =IF(AC13=100,"ОК"," ") -> 
A14: 4 | O14: 8262.157373 | P14: 34.592 | Q14: 9.608888889 | R14: 9152.407696 | S14: 38.3193 | T14: 10.64425 | AC14: 0 | AD14: =IF(AC14=100,"ОК"," ") -> 
A15: 5 | O15: 8262.157373 | P15: 34.592 | Q15: 9.608888889 | R15: 9152.407696 | S15: 38.3193 | T15: 10.64425 | AC15: 0
A16: 6 | B16: 93.4892 | C16: 3.3337 | D16: 0.9661 | E16: 0.1354 | F16: 0.1708 | G16: 0.0013 | H16: 0.0421 | I16: 0.0328 | J16: 0.1147 | K16: 0.0049 | L16: 1.4257 | M16: 0.2833 | N16: 0.7201 | O16: 8286.615193 | P16: 34.6944 | Q16: 9.637333333 | R16: 9178.489668 | S16: 38.4285 | T16: 10.67458333 | U16: =V16*238.8459 -> 11870.64123 | V16: 49.7 | W16: =V16/3.6 -> 13.80555556 | AC16: 100 | AD16: ОК
A17: 7 | B17: 93.5279 | C17: 3.3295 | D17: 0.9625 | E17: 0.1347 | F17: 0.1693 | G17: 0.0004 | H17: 0.0414 | I17: 0.0317 | J17: 0.1035 | K17: 0.0044 | L17: 1.4133 | M17: 0.2814 | N17: 0.7195 | O17: 8282.578697 | P17: 34.6775 | Q17: 9.632638889 | R17: 9174.214327 | S17: 38.4106 | T17: 10.66961111 | U17: 11869.92469 | V17: 49.697 | W17: 13.80472222 | Z17: 0.0001 | AA17: 0.002 | AC17: 100 | AD17: ОК
A18: 8 | O18: 8282.578697 | P18: 34.6775 | Q18: 9.632638889 | R18: 9174.214327 | S18: 38.4106 | T18: 10.66961111 | AC18: 0
A19: 9 | O19: 8282.578697 | P19: 34.6775 | Q19: 9.632638889 | R19: 9174.214327 | S19: 38.4106 | T19: 10.66961111 | AC19: 0
A20: 10 | O20: 8282.578697 | P20: 34.6775 | Q20: =P20/3.6 -> 9.632638889 | R20: 9174.214327 | S20: 38.4106 | T20: =S20/3.6 -> 10.66961111 | AC20: 0
A21: 11 | O21: 8282.578697 | P21: 34.6775 | Q21: 9.632638889 | R21: 9174.214327 | S21: 38.4106 | T21: 10.66961111 | AC21: 0
A22: 12 | O22: 8282.578697 | P22: 34.6775 | Q22: 9.632638889 | R22: 9174.214327 | S22: 38.4106 | T22: 10.66961111 | AC22: 0
A23: 13 | B23: 93.4179 | C23: 3.378 | D23: 0.9636 | E23: 0.1318 | F23: 0.1651 | G23: 0.0037 | H23: 0.0401 | I23: 0.0299 | J23: 0.0874 | K23: 0.0044 | L23: 1.4909 | M23: 0.2873 | N23: 0.7197 | O23: 8272.8099 | P23: 34.6366 | Q23: 9.621277778 | R23: 9163.490146 | S23: 38.3657 | T23: 10.65713889 | U23: 11854.75798 | V23: 49.6335 | W23: 13.78708333 | AC23: 100.0001
A24: 14 | B24: 93.4701 | C24: 3.3572 | D24: 0.959 | E24: 0.1318 | F24: 0.1656 | G24: 0.0025 | H24: 0.0411 | I24: 0.0309 | J24: 0.0731 | K24: 0.0046 | L24: 1.48 | M24: 0.2842 | N24: 0.719 | O24: 8267.937444 | P24: 34.6162 | Q24: 9.615611111 | R24: 9158.283305 | S24: 38.3439 | T24: 10.65108333 | U24: 11853.44433 | V24: 49.628 | W24: 13.78555556 | AB24: відсутні | AC24: 100.0001
A25: 15 | B25: 93.4428 | C25: 3.335 | D25: 0.9548 | E25: 0.1329 | F25: 0.1678 | G25: 0.002 | H25: 0.0421 | I25: 0.0323 | J25: 0.1278 | K25: 0.0048 | L25: 1.4733 | M25: 0.2843 | N25: 0.7205 | O25: 8284.489464 | P25: 34.6855 | Q25: 9.634861111 | R25: 9176.05344 | S25: 38.4183 | T25: 10.67175 | U25: 11864.07297 | V25: 49.6725 | W25: 13.79791667 | X25: -11.5 | Y25: -2 | AC25: 99.9999
A26: 16 | O26: 8284.489464 | P26: 34.6855 | Q26: =P26/3.6 -> 9.634861111 | R26: 9176.05344 | S26: 38.4183 | T26: =S26/3.6 -> 10.67175 | AC26: 0
A27: 17 | O27: 8284.489464 | P27: 34.6855 | Q27: 9.634861111 | R27: 9176.05344 | S27: 38.4183 | T27: 10.67175 | AC27: 0
A28: 18 | O28: 8284.489464 | P28: 34.6855 | Q28: 9.634861111 | R28: 9176.05344 | S28: 38.4183 | T28: 10.67175 | AC28: 0
A29: 19 | O29: 8284.489464 | P29: 34.6855 | Q29: 9.634861111 | R29: 9176.05344 | S29: 38.4183 | T29: 10.67175 | AC29: 0
A30: 20 | B30: 93.5511 | C30: 3.2746 | D30: 0.9696 | E30: 0.1368 | F30: 0.1726 | G30: 0.0006 | H30: 0.0421 | I30: 0.0327 | J30: 0.1314 | K30: 0.0069 | L30: 1.4032 | M30: 0.2784 | N30: 0.7201 | O30: 8290.962188 | P30: 34.7126 | Q30: 9.642388889 | R30: 9183.218817 | S30: 38.4483 | T30: 10.68008333 | U30: 11876.20634 | V30: 49.7233 | W30: 13.81202778 | AC30: 100 | AD30: =IF(AC30=100,"ОК"," ") -> ОК
A31: 21 | B31: 93.578 | C31: 3.2667 | D31: 0.9637 | E31: 0.1348 | F31: 0.1708 | G31: 0.001 | H31: 0.041 | I31: 0.0317 | J31: 0.133 | K31: 0.0055 | L31: 1.3962 | M31: 0.2776 | N31: 0.7199 | O31: 8289.815728 | P31: 34.7078 | Q31: 9.641055556 | R31: 9182.000703 | S31: 38.4432 | T31: 10.67866667 | U31: 11876.54072 | V31: 49.7247 | W31: 13.81241667 | Z31: 0.0002 | AA31: 0.002 | AC31: 100 | AD31: ОК
A32: 22 | B32: 93.6562 | C32: 3.2519 | D32: 0.9539 | E32: 0.1322 | F32: 0.1663 | G32: 0.0005 | H32: 0.0389 | I32: 0.0297 | J32: 0.0943 | K32: 0.0057 | L32: 1.3938 | M32: 0.2764 | N32: 0.7183 | O32: 8273.574207 | P32: 34.6398 | Q32: 9.622166667 | R32: 9164.636606 | S32: 38.3705 | T32: 10.65847222 | U32: 11867.20185 | V32: 49.6856 | W32: 13.80155556 | AC32: 99.9998
A33: 23 | B33: 93.5985 | C33: 3.2675 | D33: 0.964 | E33: 0.1353 | F33: 0.17 | G33: 0.0007 | H33: 0.0409 | I33: 0.0316 | J33: 0.116 | K33: 0.0054 | L33: 1.3916 | M33: 0.2785 | N33: 0.7194 | O33: 8284.752195 | P33: 34.6866 | Q33: =P33/3.6 -> 9.635166667 | R33: 9176.62667 | S33: 38.4207 | T33: =S33/3.6 -> 10.67241667 | U33: 11873.86565 | V33: 49.7135 | W33: 13.80930556 | AC33: 100 | AD33: =IF(AC33=100,"ОК"," ") -> ОК
A34: 24 | B34: 93.5933 | C34: 3.2679 | D34: 0.9681 | E34: 0.1358 | F34: 0.1722 | G34: 0.0011 | H34: 0.0418 | I34: 0.0325 | J34: 0.1214 | K34: 0.0053 | L34: 1.3823 | M34: 0.2782 | N34: 0.7197 | O34: 8288.812575 | P34: 34.7036 | Q34: 9.639888889 | R34: 9180.99755 | S34: 38.439 | T34: 10.6775 | U34: 11877.37668 | V34: 49.7282 | W34: 13.81338889 | AC34: 99.9999
A35: 25 | O35: 8288.812575 | P35: 34.7036 | Q35: 9.639888889 | R35: 9180.99755 | S35: 38.439 | T35: 10.6775 | AC35: 0
A36: 26 | O36: 8288.812575 | P36: 34.7036 | Q36: 9.639888889 | R36: 9180.99755 | S36: 38.439 | T36: =S36/3.6 -> 10.6775 | AC36: 0
A37: 27 | B37: 93.5377 | C37: 3.3053 | D37: 0.9807 | E37: 0.1383 | F37: 0.1753 | G37: 0.002 | H37: 0.042 | I37: 0.0326 | J37: 0.0969 | K37: 0.0056 | L37: 1.3976 | M37: 0.2859 | N37: 0.7196 | O37: 8284.656657 | P37: 34.6862 | Q37: 9.635055556 | R37: 9176.459478 | S37: 38.42 | T37: 10.67222222 | U37: 11871.97877 | V37: 49.7056 | W37: 13.80711111 | X37: -8.7 | Y37: -1.7 | AB37: відсутні | AC37: 99.9999
A38: 28 | O38: 8284.656657 | P38: 34.6862 | Q38: 9.635055556 | R38: 9176.459478 | S38: 38.42 | T38: 10.67222222 | AC38: 0
A39: 29 | AC39: 0
A40: 30 | AC40: 0
A41: 31 | AC41: 0
A42: Рівень одоризації відповідає чинним нормативним документам | O42: =SUMPRODUCT(O11:O41,' розрахунок'!D7:D37)/' розрахунок'!D38 -> 8279.224169 | P42: =SUMPRODUCT(P11:P41,' розрахунок'!D7:D37)/' розрахунок'!D38 -> 34.66345526 | Q42: =SUMPRODUCT(Q11:Q41,' розрахунок'!D7:D37)/' розрахунок'!D38 -> 9.628737572 | R42: =SUMPRODUCT(R11:R41,' розрахунок'!D7:D37)/' розрахунок'!D38 -> 9170.596775 | S42: =SUMPRODUCT(S11:S41,' розрахунок'!D7:D37)/' розрахунок'!D38 -> 38.39545403 | T42: =SUMPRODUCT(T11:T41,' розрахунок'!D7:D37)/' розрахунок'!D38 -> 10.6654039
H43: Середньозважене значення теплоти згоряння:
B46: В.о.начальника управління Пролетарського ВУПЗГ | O46: Жебко В.В. | V46: 01.03.2017 р.
C47: Підрозділу підприємства, якому підпорядкована лабораторія | O47: прізвище | R47: підпис | V47: дата
B48: Завідувач лабораторії | O48: Рекунович В.В. | V48: 01.03.2017 р.
C49: Лабораторія, де здійснювалось вимірювання газу | O49: прізвище | R49: підпис | V49: дата
B50: Інженер з метрології ІІ кат | O50: Поліщук О.С. | V50: 01.03.2017 р.
C51: Підрозділу, відповідального за облік газу за маршрутом | O51: прізвище | R51: підпис | V51: дата

Sheet розрахунок (hidden)
A2: Додаток до Паспорту фізико-хімічних показників природного газу по маршруту № 642
A4: Число місяця | B4: Теплота згоряння вища, МДж/м3 | C4: Дніпропетровська область | D4: Загальний обсяг газу, м3
C5: Обсяг газу переданого за добу, м3
C6: АГРС-1/3
A7: 1 | B7: =паспорт!S11 -> 38.3193 | C7: 733 | D7: =SUM(C7:C7) -> 733
A8: 2 | B8: =паспорт!S12 -> 38.3193 | C8: 631 | D8: 631
A9: 3 | B9: =паспорт!S13 -> 38.3193 | C9: 596 | D9: 596
A10: 4 | B10: =паспорт!S14 -> 38.3193 | C10: 543 | D10: 543
A11: 5 | B11: =паспорт!S15 -> 38.3193 | C11: 551 | D11: 551
A12: 6 | B12: =паспорт!S16 -> 38.4285 | C12: 611 | D12: 611
A13: 7 | B13: =паспорт!S17 -> 38.4106 | C13: 830 | D13: 830
A14: 8 | B14: =паспорт!S18 -> 38.4106 | C14: 854 | D14: 854
A15: 9 | B15: =паспорт!S19 -> 38.4106 | C15: 763 | D15: 763
A16: 10 | B16: =паспорт!S20 -> 38.4106 | C16: 734 | D16: 734
A17: 11 | B17: =паспорт!S21 -> 38.4106 | C17: 655 | D17: 655
A18: 12 | B18: =паспорт!S22 -> 38.4106 | C18: 618 | D18: 618
A19: 13 | B19: =паспорт!S23 -> 38.3657 | C19: 593 | D19: 593
A20: 14 | B20: =паспорт!S24 -> 38.3439 | C20: 597 | D20: 597
A21: 15 | B21: =паспорт!S25 -> 38.4183 | C21: 490 | D21: 490
A22: 16 | B22: =паспорт!S26 -> 38.4183 | C22: 530 | D22: 530
A23: 17 | B23: =паспорт!S27 -> 38.4183 | C23: 575 | D23: 575
A24: 18 | B24: =паспорт!S28 -> 38.4183 | C24: 513 | D24: 513
A25: 19 | B25: =паспорт!S29 -> 38.4183 | C25: 491 | D25: 491
A26: 20 | B26: =паспорт!S30 -> 38.4483 | C26: 488 | D26: 488
A27: 21 | B27: =паспорт!S31 -> 38.4432 | C27: 507 | D27: 507
A28: 22 | B28: =паспорт!S32 -> 38.3705 | C28: 491 | D28: 491
A29: 23 | B29: =паспорт!S33 -> 38.4207 | C29: 503 | D29: 503
A30: 24 | B30: =паспорт!S34 -> 38.439 | C30: 458 | D30: 458
A31: 25 | B31: =паспорт!S35 -> 38.439 | C31: 443 | D31: 443
A32: 26 | B32: =паспорт!S36 -> 38.439 | C32: 485 | D32: 485
A33: 27 | B33: =паспорт!S37 -> 38.42 | C33: 480 | D33: 480
A34: 28 | B34: =паспорт!S38 -> 38.42 | C34: 464 | D34: 464
A35: 29 | D35: 0
A36: 30 | D36: 0
A37: 31 | D37: 0
A38: Загальний обсяг газу, м3 | C38: =SUM(C7:C37) -> 16227 | D38: =SUM(D7:D37) -> 16227
A39: Енергія, МДж | C39: =SUMPRODUCT(B7:B37,C7:C37) -> 623043.0326 | D39: =SUMPRODUCT(B7:B37,D7:D37) -> 623043.0326
A40: Теплота згоряння (середньозважене значення за місяць), МДж/м³ | C40: =C39/C38 -> 38.39545403 | D40: 38.39545403
A41: Теплота згоряння (середньозважене значення за місяць), ккал/м³ | C41: =C40*238.8459 -> 9170.596775 | D41: 9170.596775
A42: Теплота згоряння (середньозважене значення за місяць), кВт*год./м³ | C42: =C40/3.6 -> 10.6654039 | D42: 10.6654039

Sheet додаток
B1: Додаток до Паспорту фізико-хімічних показників природного газу № 642
B3: Область | C3: ГРС, прямий споживач | D3: Cередньозважене значення вищої теплоти згоряння
D4: МДж/м³ | E4: ккал/м³ | F4: кВт*год./м³
B5: Дніпропетровська область | C5: АГРС-1/3 | D5: 38.4 | E5: 9171 | F5: 10.67
B6: Середньозважене значення вищої теплоти згоряння по маршруту № 642 | D6: 38.4 | E6: 9171 | F6: 10.67
B10: В.о.начальника управління Пролетарського ВУПЗГ | E10: Жебко В.В. | G10: 01.03.2017 р
B11: Підрозділу підприємства, якому підпорядкована лабораторія | E11: прізвище | F11: підпис | G11: дата
B12: Завідувач лабораторії | E12: Рекунович В.В. | G12: 01.03.2017 р.
B13: Лабораторія, де здійснювалось вимірювання газу | E13: прізвище | F13: підпис | G13: дата
B14: Інженер з метрології ІІ кат | E14: Поліщук О.С. | G14: 01.03.2017 р.
B15: Підрозділу, відповідального за облік газу за маршрутом | E15: прізвище | F15: підпис | G15: дата

Sheet variablesList (hidden)
A1: 3 | B1: x:\gaysin | C1: 10, 11, 24, 25, 127, 128, 132, 180, 207, 215 | D1: x:\
B2: x:\Illinci
B3: x:\Talne
